bitfinex/quotes_ETHUSD_20251125
["timestamp","ask_amount","ask_price","bid_price","bid_amount"]
[1764087532536,0.1643,2907.6,2906.8,0.405504]
[1764087532935,0.6456,2907.6,2906.9,0.72559411]
[1764087534552,0.1643,2907.9,2907.1,0.09971661]
[1764087534720,0.6456,2907.9,2907.1,0.09971661]
[1764087534920,0.6456,2907.9,2907.0,0.405504]
[1764087535148,0.4813,2907.8,2907.1,6.8797083]
[1764087536068,0.1643,2907.9,2907.1,10.50706245]
[1764087536271,0.1643,2907.9,2907.1,7.0672083]
[1764087536554,0.1643,2907.9,2907.1,3.43985415]
[1764087536555,0.4813,2907.8,2907.1,3.43985415]
[1764087536781,0.4813,2907.8,2907.1,6.8797083]
[1764087536918,0.4813,2907.8,2907.1,3.43985415]
[1764087537119,3.43914434,2907.7,2907.0,6.87992016]
[1764087537347,0.4813,2907.8,2907.0,6.87992016]
[1764087537657,0.4813,2907.7,2907.0,6.87992016]
[1764087538519,0.4813,2907.7,2907.0,3.43994768]
[1764087538931,0.4813,2907.7,2907.0,6.87992016]
[1764087539763,0.1643,2907.9,2907.2,0.50522061]
[1764087540120,0.1643,2907.9,2907.2,0.99772061]
[1764087540320,0.22,2908.0,2907.4,0.405504]
[1764087540660,0.22,2908.0,2907.1,0.90629411]
[1764087540661,0.1643,2907.9,2907.1,0.90629411]
[1764087540843,0.1643,2907.9,2907.2,0.1807]
[1764087541273,0.1651,2908.7,2907.2,0.1807]
[1764087541274,0.002,2907.7,2907.4,0.405504]
[1764087541480,0.002,2907.7,2907.6,9.41397617]
[1764087541652,0.002,2907.7,2907.6,9.99039278]
[1764087541850,0.002,2907.7,2907.6,5.04706073]
[1764087542066,0.002,2907.7,2907.6,5.63927734]
[1764087542960,0.002,2908.0,2907.9,0.50522061]
[1764087543173,0.002,2908.0,2907.9,1.69442061]
[1764087543549,0.002,2908.0,2907.9,5.85892252]
[1764087543884,1.40396919,2910.0,2908.8,0.09971661]
[1764087543885,0.22,2909.7,2908.8,0.09971661]
[1764087544061,0.32014703,2909.6,2908.8,0.09971661]
[1764087544251,0.32014703,2909.6,2908.9,0.1807]
[1764087544884,0.22,2909.7,2909.0,0.09971661]
[1764087545266,0.20107951,2910.3,2909.1,0.898004]
[1764087545463,0.31983716,2910.2,2909.5,6.87403332]
[1764087545805,0.31983716,2910.2,2909.6,0.09971661]
[1764087546085,0.20107951,2910.3,2909.7,0.405504]
[1764087547182,0.20107951,2910.3,2909.8,0.09971661]
[1764087547353,0.20107951,2910.3,2909.9,0.405504]
[1764087547686,0.20107951,2910.3,2910.1,0.405504]
[1764087547886,0.20107951,2910.3,2910.0,3.43642611]
[1764087548185,0.20107951,2910.3,2910.0,6.87285222]
[1764087548370,0.20107951,2910.3,2910.2,0.882204]
[1764087548570,2.46868644,2912.3,2910.8,0.09971661]
[1764087548571,0.91707802,2912.3,2910.8,0.09971661]
[1764087548884,0.91707802,2912.3,2910.2,1.594704]
[1764087548885,0.4524,2912.1,2911.0,0.1807]
[1764087549065,0.4524,2912.1,2911.1,0.405504]
[1764087549466,0.4524,2912.1,2910.7,0.72559411]
[1764087549467,0.03118449,2912.0,2911.0,0.405504]
[1764087549663,0.4524,2912.1,2911.1,0.1807]
[1764087549867,0.4524,2912.2,2911.1,0.77291661]
[1764087550067,0.4524,2912.2,2911.3,0.09971661]
[1764087550266,0.4524,2912.2,2911.1,0.1807]
[1764087550471,0.2593,2911.2,2910.3,0.72559411]
[1764087550680,0.2593,2911.2,2910.2,6.87235421]
[1764087550904,0.2593,2911.2,2909.9,3.65647707]
[1764087550905,0.4521,2911.1,2909.9,3.43644281]
[1764087551215,0.1642,2911.1,2910.0,1.31781072]
[1764087551354,0.6166,2911.4,2910.4,1.13109811]
[1764087551554,0.6166,2911.4,2910.6,1.13109811]
[1764087551793,0.6166,2911.4,2910.6,0.72559411]
[1764087552155,0.6158,2911.4,2910.6,0.72559411]
[1764087552375,4.0505894,2911.4,2910.6,0.72559411]
[1764087552578,0.261,2910.7,2910.3,0.405504]
[1764087552769,0.6724,2911.3,2910.4,0.898004]
[1764087552770,0.4524,2911.3,2910.4,0.898004]
[1764087552966,0.1634,2911.4,2910.4,0.898004]
[1764087553170,0.1634,2911.4,2910.7,0.09971661]
[1764087553493,0.72559411,2912.1,2910.5,0.4925]
[1764087553494,0.1634,2911.7,2911.1,6.87025522]
[1764087553668,0.1634,2911.7,2911.1,7.05095522]
[1764087554019,0.4524,2911.6,2910.9,3.43536363]
[1764087554313,0.0967,2911.0,2910.7,3.43559968]
[1764087554609,0.0967,2911.0,2910.6,0.72559411]
[1764087554610,0.1643,2910.8,2910.6,0.72559411]
[1764087555269,0.4524,2911.3,2910.6,0.72559411]
[1764087555464,3.88738168,2911.3,2910.5,0.72559411]
[1764087555700,0.4524,2911.3,2910.5,4.16137654]
[1764087555867,4.10710137,2911.5,2910.5,7.5972123]
[1764087556574,0.4524,2911.4,2910.5,4.16137654]
[1764087556918,0.4524,2911.4,2909.9,0.22]
[1764087556919,0.261,2910.6,2909.7,0.1807]
[1764087557072,0.261,2910.6,2909.9,0.72559411]
[1764087557269,0.261,2910.6,2910.0,0.405504]
[1764087557490,0.261,2910.6,2910.1,3.43630803]
[1764087557695,0.261,2910.6,2910.1,6.87261606]
[1764087557895,0.1643,2910.8,2910.1,7.54581606]
[1764087558205,0.1643,2910.8,2910.1,3.43630803]
[1764087558206,0.6167,2910.8,2910.1,3.43630803]
[1764087558699,0.4524,2910.7,2910.1,3.43630803]
[1764087559225,0.22,2911.1,2910.2,0.405504]
[1764087559516,0.22,2911.1,2910.3,3.43607188]
[1764087559670,0.1643,2910.4,2910.3,3.43607188]
[1764087559870,0.261,2910.4,2909.8,3.43666231]
[1764087560072,0.261,2910.4,2909.9,0.72559411]
[1764087560369,0.261,2910.4,2910.0,0.03436426]
[1764087560718,0.1643,2910.6,2909.9,0.72559411]
[1764087561372,0.22,2910.8,2910.0,0.405504]
[1764087561573,0.22,2910.8,2910.1,6.87261606]
[1764087561769,0.6791,2910.8,2910.1,3.43630803]
[1764087562012,0.6791,2910.8,2910.1,6.87261606]
[1764087562481,4.1146064,2910.8,2910.1,7.05561606]
[1764087562682,0.6791,2910.8,2910.1,7.05561606]
[1764087563000,0.4591,2910.7,2910.0,6.87281954]
[1764087563387,0.4591,2910.7,2910.0,3.43639343]
[1764087563894,0.09,2910.1,2909.8,3.43657818]
[1764087564098,0.1651,2909.9,2909.4,0.183]
[1764087564298,0.1651,2909.9,2909.4,3.4371348]
[1764087564299,0.2551,2909.9,2909.4,3.4371348]
[1764087564470,0.7105,2909.9,2909.4,3.4371348]
[1764087564680,0.4554,2909.8,2909.2,3.43737109]
[1764087564922,0.4554,2909.8,2909.1,6.87493415]
[1764087565074,0.4554,2909.8,2909.1,3.4374449]
[1764087565274,0.4554,2909.8,2909.1,6.87493415]
[1764087565508,0.4554,2909.8,2908.6,0.6824]
[1764087565716,3.89214406,2909.8,2908.8,0.72559411]
[1764087566014,3.89214406,2909.8,2908.7,6.87592394]
[1764087566015,0.4591,2909.7,2908.7,6.87592394]
[1764087566315,0.22,2909.6,2908.8,0.72559411]
[1764087566606,0.6791,2909.6,2908.8,0.72559411]
[1764087567013,0.1651,2909.9,2908.8,0.72559411]
[1764087567193,0.1651,2909.9,2909.2,0.405504]
[1764087567376,0.1643,2910.9,2909.4,0.405504]
[1764087567573,1.40469411,2910.8,2909.6,0.09971661]
[1764087567778,0.72559411,2910.6,2909.7,3.43678042]
[1764087568103,0.31866981,2910.5,2909.7,6.87356084]
[1764087568307,0.77776981,2910.5,2909.7,6.87356084]
[1764087568475,0.31866981,2910.4,2909.7,6.87356084]
[1764087568675,0.4591,2910.5,2909.7,6.87356084]
[1764087568876,0.4591,2910.5,2909.3,0.6454]
[1764087568877,0.03118449,2910.7,2910.4,0.183]
[1764087569083,0.002,2911.5,2910.6,0.4863]
[1764087569337,3.4366878,2911.5,2910.6,0.4863]
[1764087569506,3.4366878,2911.5,2910.2,4.84361544]
[1764087569507,0.80978171,2911.4,2910.1,0.183]
[1764087569830,0.1643,2910.7,2909.9,0.405504]
[1764087570026,0.1643,2910.7,2910.0,6.87277928]
[1764087570194,4.05902834,2910.7,2910.0,3.43635317]
[1764087570519,4.05900608,2910.7,2910.0,6.87277928]
[1764087570807,0.6234,2910.7,2910.0,6.87277928]
[1764087571175,4.05902034,2910.7,2909.9,3.43649326]
[1764087571374,0.77916181,2910.6,2909.9,3.43649326]
[1764087571610,0.4591,2910.6,2909.9,3.43649326]
[1764087571806,0.4591,2910.6,2909.8,6.87332462]
[1764087572200,0.32035394,2910.5,2909.8,6.87332462]
[1764087573682,0.32035394,2910.5,2909.8,3.43666231]
[1764087573882,3.75624291,2910.5,2909.8,6.87332462]
[1764087574121,0.32070798,2910.4,2909.8,3.43666231]
[1764087574517,0.32070798,2910.4,2909.8,6.87332462]
[1764087574930,0.2534,2909.9,2909.7,3.43675114]
[1764087575133,0.2534,2909.9,2909.2,3.43737109]
[1764087575305,0.1651,2909.8,2909.3,0.72559411]
[1764087575706,0.1651,2909.8,2909.2,6.87474218]
[1764087576224,0.1643,2909.8,2909.2,6.87474218]
[1764087578210,0.8434,2909.8,2909.1,3.4374625]
[1764087578504,0.32074972,2909.7,2909.1,3.4374625]
[1764087578729,0.77984972,2909.7,2909.1,3.4374625]
[1764087578908,0.32074972,2909.6,2909.1,6.87495175]
[1764087579107,0.32074972,2909.6,2909.1,3.4374625]
[1764087579444,0.77984972,2909.6,2909.1,6.87495175]
[1764087579632,0.4591,2909.6,2909.1,3.4374625]
[1764087579944,0.4591,2909.5,2908.9,3.43766582]
[1764087580238,0.0899,2909.2,2908.9,3.43766582]
[1764087580450,0.0899,2909.2,2908.9,6.87539142]
[1764087580617,0.3843,2909.8,2909.1,0.6693]
[1764087580810,0.32100719,2909.7,2909.1,0.6693]
[1764087581013,0.32100719,2909.7,2908.9,6.87539142]
[1764087581014,0.78010719,2909.7,2908.9,6.87539142]
[1764087581213,0.32100719,2909.6,2908.9,6.87539142]
[1764087581434,0.78010719,2909.6,2908.9,6.87539142]
[1764087581739,0.32100719,2909.5,2908.9,6.87539142]
[1764087582775,0.3843,2909.8,2909.0,0.4624]
[1764087582931,0.32092974,2909.7,2909.0,0.4624]
[1764087583134,0.32092974,2909.7,2908.9,0.405504]
[1764087583333,0.78002974,2909.7,2908.9,0.405504]
[1764087583531,0.32092974,2909.6,2908.9,0.405504]
[1764087584364,0.91707802,2910.4,2909.6,0.405504]
[1764087584658,0.3210936,2910.3,2909.8,6.87332462]
[1764087584863,0.22,2910.5,2909.8,6.87332462]
[1764087585071,0.32103756,2910.4,2909.9,0.49676544]
[1764087585368,0.32103756,2910.4,2909.9,0.4624]
[1764087586571,0.32103756,2910.4,2910.0,6.87285222]
[1764087586930,1.37617802,2911.3,2910.3,0.4863]
[1764087587165,1.28112789,2911.2,2910.4,0.4863]
[1764087587377,0.32116445,2911.1,2910.4,0.4863]
[1764087587578,0.32116445,2911.0,2910.4,0.4863]
[1764087587784,0.32116445,2910.9,2910.4,0.4863]
[1764087587969,0.32116445,2910.8,2910.4,0.4863]
[1764087588166,0.95996344,2911.2,2910.4,0.9487]
[1764087588377,0.32110875,2911.1,2910.4,0.9487]
[1764087588584,0.32110875,2911.0,2910.4,0.9487]
[1764087588785,0.32110875,2910.9,2910.5,6.87167152]
[1764087588957,0.32110875,2910.8,2910.5,6.87167152]
[1764087589257,3.65503418,2911.2,2910.5,6.87167152]
[1764087589457,0.32108482,2911.1,2910.5,6.87167152]
[1764087589780,0.32108482,2911.0,2910.5,6.87167152]
[1764087590075,0.32108482,2910.9,2910.5,6.87167152]
[1764087590258,0.32108482,2910.8,2910.5,6.87167152]
[1764087590574,0.22,2911.2,2910.5,6.87167152]
[1764087590871,0.32104775,2911.1,2910.5,3.43583576]
[1764087591186,0.32104775,2911.0,2910.5,3.43583576]
[1764087591381,0.32104775,2910.9,2910.5,3.43583576]
[1764087591595,0.32104775,2910.8,2910.5,3.43583576]
[1764087591742,0.002,2911.4,2910.5,6.87167152]
[1764087591948,0.22,2911.1,2910.5,6.87167152]
[1764087592142,0.32101569,2911.0,2910.5,6.87167152]
[1764087592347,0.32101569,2911.0,2910.3,7.27764776]
[1764087592553,0.1643,2910.9,2910.3,7.27764776]
[1764087593594,0.3209651,2911.0,2910.3,7.27764776]
[1764087593809,0.22,2911.1,2910.5,0.405504]
[1764087594300,0.22,2911.1,2910.5,0.903604]
[1764087594479,0.22,2911.1,2910.6,6.87143544]
[1764087594682,0.22,2911.1,2910.6,7.36953544]
[1764087595696,0.22,2911.1,2910.6,6.87143544]
[1764087595898,0.7081,2911.1,2910.6,3.43571772]
[1764087596491,0.22,2911.1,2910.6,6.87143544]
[1764087596789,0.22,2911.1,2910.6,7.36953544]
[1764087596954,0.22,2911.1,2910.6,3.93381772]
[1764087597156,0.22,2911.1,2910.6,7.36953544]
[1764087597382,0.22,2911.1,2910.6,3.43571772]
[1764087597772,0.7081,2911.1,2910.6,3.43571772]
[1764087598313,0.4881,2911.0,2910.5,3.43573041]
[1764087598603,0.4881,2911.0,2910.4,6.87190253]
[1764087598806,0.1643,2910.9,2910.3,0.72559411]
[1764087599392,0.22,2910.8,2910.3,1.18249411]
[1764087599605,0.22,2910.8,2910.4,0.4569]
[1764087599797,0.22,2910.8,2910.7,0.4589]
[1764087600108,0.22,2910.8,2910.4,0.4569]
[1764087600309,0.4944,2910.5,2909.8,3.43761019]
[1764087600511,0.1643,2910.7,2909.8,0.001]
[1764087600683,0.22,2910.4,2909.8,0.001]
[1764087602005,0.1643,2910.7,2909.8,0.001]
[1764087602210,0.22,2910.6,2909.8,0.4579]
[1764087602521,0.002,2911.0,2910.0,0.09971661]
[1764087602687,0.002,2911.0,2909.9,0.43986944]
[1764087602688,0.222,2911.0,2910.6,0.4589]
[1764087603023,0.002,2911.0,2910.6,0.4589]
[1764087604421,0.002,2911.0,2910.6,0.9158]
[1764087604600,0.002,2911.0,2910.9,3.89426363]
[1764087605515,0.0684,2911.0,2910.6,6.87143544]
[1764087606085,0.002,2911.0,2910.9,0.4589]
[1764087606482,0.002,2911.0,2910.9,0.9158]
[1764087606698,0.002,2911.0,2910.9,4.35116363]
[1764087608344,0.002,2911.0,2910.9,3.89426363]
[1764087608496,0.002,2911.0,2910.9,4.35116363]
[1764087609818,0.002,2911.0,2910.9,4.45088024]
[1764087611649,0.002,2911.0,2910.9,4.85638424]
[1764087611807,0.002,2911.0,2910.9,5.58197835]
[1764087612307,1.22168735,2912.3,2910.9,5.58197835]
[1764087612308,0.647,2912.8,2911.8,0.09971661]
[1764087612639,0.164,2912.8,2911.9,0.4569]
[1764087612941,0.164,2912.8,2912.0,6.86813186]
[1764087613304,0.483,2912.7,2912.0,6.86813186]
[1764087613506,0.164,2912.8,2912.0,10.75909779]
[1764087613709,0.164,2912.8,2912.0,10.8588144]
[1764087614032,0.164,2912.8,2912.1,0.4569]
[1764087614921,0.164,2912.8,2912.2,6.86766018]
[1764087615322,0.1643,2913.1,2912.2,10.30149027]
[1764087615512,0.6473,2913.1,2912.2,7.32456018]
[1764087616213,0.483,2913.0,2912.2,3.43383009]
[1764087616630,0.483,2913.0,2911.9,0.1993]
[1764087616944,0.483,2913.0,2912.0,3.43406357]
[1764087617144,3.4330049,2912.9,2912.0,6.8681295]
[1764087617355,0.0664,2912.1,2911.9,3.43417303]
[1764087617531,0.483,2912.6,2911.9,3.43417303]
[1764087617731,0.002,2912.8,2911.9,6.86835689]
[1764087617955,0.002,2912.8,2911.9,7.32525689]
[1764087618169,0.002,2912.8,2912.0,0.4569]
[1764087619726,3.91812276,2912.8,2912.1,3.43394801]
[1764087620336,0.4696,2912.7,2912.1,3.43394801]
[1764087620861,0.0796,2912.2,2911.7,6.8688395]
[1764087621152,0.0796,2912.2,2911.7,7.0888395]
[1764087621362,0.0796,2912.2,2911.7,7.5520395]
[1764087621538,0.4696,2912.7,2911.7,7.5520395]
[1764087621740,0.002,2912.8,2911.8,0.56291661]
[1764087622050,0.002,2912.8,2911.9,0.405504]
[1764087622234,0.002,2912.8,2912.1,0.09971661]
[1764087622648,0.002,2912.8,2912.2,0.4632]
[1764087623869,0.002,2912.8,2912.7,0.4924]
[1764087624364,0.0012,2912.8,2912.7,0.9556]
[1764087624971,0.0012,2912.8,2912.7,1.361104]
[1764087625432,0.0012,2912.8,2912.7,1.46082061]
[1764087625636,0.0012,2912.8,2912.7,4.79434463]
[1764087625894,0.0012,2912.8,2912.7,3.92564063]
[1764087626330,0.0808,2912.8,2912.5,3.43337805]
[1764087626531,0.0012,2912.8,2912.5,3.43337805]
[1764087627166,0.0012,2912.8,2912.5,6.86685444]
[1764087627366,0.0834,2912.6,2912.1,0.72559411]
[1764087627613,0.0834,2912.6,2912.2,3.43382849]
[1764087627732,0.5453,2912.6,2911.9,6.86834985]
[1764087627931,0.5453,2912.6,2911.9,10.30253371]
[1764087627932,0.0834,2912.6,2911.9,10.30253371]
[1764087628137,0.0834,2912.6,2912.0,0.72559411]
[1764087628433,0.0012,2912.8,2912.5,0.4924]
[1764087628632,0.0012,2912.8,2912.1,0.4632]
[1764087629046,0.4708,2912.8,2912.0,0.72559411]
[1764087629780,0.0012,2912.8,2912.3,10.30113654]
[1764087629951,0.0012,2912.8,2912.4,0.72559411]
[1764087630266,0.0012,2912.8,2912.4,1.18879411]
[1764087630471,0.0012,2912.8,2912.7,0.4924]
[1764087630845,0.0012,2912.8,2912.5,0.4632]
[1764087631041,0.0012,2912.8,2912.4,0.72559411]
[1764087631976,0.0012,2912.8,2912.5,6.86695278]
[1764087632546,0.0012,2912.8,2912.5,3.43347639]
[1764087632747,0.4817,2912.6,2912.1,6.86789602]
[1764087633077,0.0676,2912.7,2912.1,6.86789602]
[1764087633242,0.6898,2912.8,2912.1,6.86789602]
[1764087633442,0.6898,2912.8,2912.1,10.30184403]
[1764087633643,0.2202,2912.8,2912.2,0.56291661]
[1764087633850,0.2202,2912.8,2912.3,6.86742436]
[1764087634256,0.0012,2912.8,2912.4,0.4632]
[1764087634654,0.0012,2912.8,2912.3,10.30113654]
[1764087634852,0.4696,2912.7,2912.3,6.86742436]
[1764087635583,0.0012,2912.8,2912.3,6.86742436]
[1764087635740,0.0012,2912.8,2912.2,3.4338026]
[1764087636078,0.4696,2912.7,2912.1,6.86789602]
[1764087636277,0.4696,2912.7,2912.1,10.30184403]
[1764087636678,0.0012,2912.8,2912.1,10.30184403]
[1764087636877,0.0012,2912.8,2912.1,10.76504403]
[1764087637244,0.0012,2912.8,2912.2,0.56291661]
[1764087637942,0.0012,2912.8,2912.3,6.86742436]
[1764087638360,0.4708,2912.8,2912.3,6.86742436]
[1764087639195,0.0796,2912.4,2912.3,3.43371218]
[1764087639848,0.4708,2912.8,2912.3,6.86742436]
[1764087640053,0.0796,2912.4,2912.0,6.86811578]
[1764087640578,0.5453,2912.4,2912.0,6.86811578]
[1764087640960,0.4657,2912.4,2912.0,6.86811578]
[1764087641283,0.4657,2912.4,2911.4,0.219]
[1764087641284,0.0834,2912.1,2911.4,0.219]
[1764087641489,0.4657,2912.4,2911.5,10.30396701]
[1764087641490,0.219,2912.3,2911.5,10.30396701]
[1764087641696,0.74097061,2912.7,2911.6,1.18879411]
[1764087641850,0.95997061,2912.6,2911.7,0.56291661]
[1764087642046,0.219,2912.6,2911.8,6.8686036]
[1764087642246,0.219,2912.6,2911.3,0.405504]
[1764087642247,0.0796,2911.9,2911.7,6.86878364]
[1764087642446,0.0796,2911.9,2911.7,3.43436389]
[1764087642447,0.2422,2911.9,2911.7,3.43436389]
[1764087642660,0.55,2911.8,2911.1,0.4632]
[1764087642857,0.4696,2911.8,2911.2,6.87001922]
[1764087643382,0.0804,2911.3,2910.9,6.87072726]
[1764087643556,0.7913233,2911.6,2910.9,3.89856363]
[1764087643756,0.219,2911.5,2911.2,0.4924]
[1764087643993,0.219,2911.5,2911.2,3.43500961]
[1764087644204,0.219,2911.5,2911.2,6.87001922]
[1764087644504,0.219,2911.6,2911.2,7.33321922]
[1764087644683,0.219,2911.7,2911.2,10.76822883]
[1764087644884,0.219,2911.7,2911.2,6.87001922]
[1764087645258,0.219,2911.7,2911.2,7.33321922]
[1764087645458,0.219,2911.7,2911.2,10.76822883]
[1764087646287,0.6886,2911.7,2911.2,6.87001922]
[1764087646814,0.0804,2911.3,2910.8,3.43647156]
[1764087647104,0.321087,2911.5,2910.8,3.43648165]
[1764087647286,0.321087,2911.5,2910.8,6.8719633]
[1764087647589,0.790687,2911.5,2910.8,3.43648165]
[1764087647891,0.0804,2910.9,2910.8,3.43648165]
[1764087648059,0.0804,2910.9,2910.8,0.001]
[1764087648260,0.0796,2910.9,2910.8,0.001]
[1764087649379,0.5462,2910.9,2910.8,0.001]
[1764087650718,4.30191988,2910.9,2910.8,0.001]
[1764087651674,3.98156363,2910.9,2910.8,0.001]
[1764087652090,3.76662032,2910.9,2910.8,0.001]
[1764087652309,0.33125669,2910.9,2910.8,0.001]
[1764087652612,0.219,2910.9,2910.8,0.001]
[1764087653276,3.59822723,2911.4,2910.8,0.001]
[1764087653608,0.53970647,2911.3,2910.8,0.001]
[1764087653791,0.31970647,2911.2,2910.8,0.001]
[1764087654208,3.43512761,2911.1,2910.8,0.001]
[1764087654411,3.43506464,2911.2,2910.8,0.001]
[1764087654591,0.32369985,2911.1,2910.8,0.001]
[1764087654785,0.31959985,2911.1,2910.8,0.001]
[1764087655395,6.87012928,2911.2,2910.8,0.001]
[1764087655599,0.31956448,2911.1,2910.8,0.001]
[1764087655783,0.0041,2910.9,2910.8,0.001]
[1764087657527,0.22,2910.9,2910.8,0.001]
[1764087660302,3.59821899,2911.4,2910.8,0.4513]
[1764087660613,0.22,2911.3,2910.8,0.4513]
[1764087660805,0.22,2911.3,2910.8,0.001]
[1764087661533,0.1634,2911.4,2910.8,0.001]
[1764087661750,0.1626,2911.9,2910.9,0.4975]
[1764087661904,0.22,2911.8,2911.3,0.6379]
[1764087662529,0.22,2911.8,2911.7,0.4503]
[1764087662749,0.4402,2912.7,2911.7,0.4503]
[1764087662949,0.53942455,2912.6,2911.7,0.4503]
[1764087663115,0.22,2912.6,2911.7,0.9478]
[1764087663324,6.86747263,2912.8,2911.7,0.9478]
[1764087663526,0.53948317,2912.7,2911.8,0.4975]
[1764087663869,0.31948317,2912.6,2911.8,0.4975]
[1764087664033,0.22,2912.5,2911.8,0.4975]
[1764087664566,0.22,2912.5,2911.9,10.30255158]
[1764087664723,0.0012,2912.8,2912.4,0.6379]
[1764087665161,0.0012,2912.8,2912.4,1.1354]
[1764087665318,0.0012,2912.8,2912.4,0.6379]
[1764087665650,0.0012,2912.8,2912.5,0.4975]
[1764087665858,0.0012,2912.8,2912.7,0.4503]
[1764087666357,0.0012,2912.8,2912.7,4.38104063]
[1764087666521,0.0012,2912.8,2912.7,5.61185535]
[1764087670478,1.85830378,2915.5,2912.7,5.61185535]
[1764087670479,0.31870771,2915.0,2914.5,4.93376193]
[1764087670765,0.92490939,2917.7,2915.8,0.09971661]
[1764087670925,0.4414,2917.5,2916.2,0.1876]
[1764087671128,0.22,2917.6,2916.3,0.405504]
[1764087671483,0.22,2917.6,2916.6,0.405504]
[1764087671628,0.22,2917.6,2916.7,0.4975]
[1764087671828,0.6775,2917.6,2916.4,0.22]
[1764087672027,0.6775,2917.6,2916.4,0.11503094]
[1764087672344,0.1131,2918.0,2916.7,0.82412072]
[1764087672658,3.54010998,2918.0,2916.7,0.72559411]
[1764087673162,0.03118449,2917.9,2916.2,0.6851]
[1764087673325,10.39412994,2918.0,2916.4,0.72559411]
[1764087673528,10.39412994,2918.0,2916.3,3.42899032]
[1764087673529,0.7567786,2917.9,2916.3,3.42899032]
[1764087673747,0.7567786,2917.9,2916.3,6.85799282]
[1764087673945,0.72559411,2917.9,2916.3,6.95651943]
[1764087674153,0.7567786,2917.9,2916.4,0.4975]
[1764087674358,6.85471432,2917.7,2916.1,6.85843183]
[1764087674543,10.28207148,2917.7,2916.2,0.72559411]
[1764087674751,0.48788449,2917.6,2916.2,0.72559411]
[1764087674943,0.22,2917.5,2916.0,7.54381025]
[1764087675142,0.22,2917.5,2916.1,0.4975]
[1764087675363,0.4567,2917.4,2916.1,0.4975]
[1764087675952,0.4567,2917.4,2916.0,7.14483686]
[1764087676138,0.4567,2917.4,2915.8,0.1876]
[1764087676139,0.03118449,2917.3,2915.8,0.6851]
[1764087676342,3.42806211,2917.1,2915.9,6.85894471]
[1764087676638,0.4567,2917.3,2915.9,7.35644471]
[1764087676863,0.22,2917.2,2916.1,0.09852661]
[1764087677060,0.22,2917.2,2915.9,3.42947182]
[1764087677360,0.48788449,2917.1,2915.8,3.6171468]
[1764087677660,0.48788449,2917.1,2915.5,3.61754095]
[1764087678362,0.4567,2917.1,2915.5,3.61754095]
[1764087678567,6.85635926,2917.0,2915.6,0.4975]
[1764087678731,0.22,2916.9,2915.5,3.61754095]
[1764087678936,0.03118449,2916.8,2915.5,3.61754095]
[1764087679134,0.856,2916.9,2915.5,3.61754095]
[1764087679362,0.856,2916.9,2915.5,7.04748435]
[1764087679363,0.48788449,2916.8,2915.5,7.04748435]
[1764087679666,0.48788449,2916.8,2915.5,3.61754095]
[1764087680163,0.4567,2916.8,2915.5,3.61754095]
[1764087680366,0.22,2916.7,2915.6,0.4901]
[1764087680571,0.4567,2916.8,2915.7,6.85941626]
[1764087680868,0.22,2916.7,2915.7,6.85941626]
[1764087681066,0.22,2916.7,2915.8,0.4901]
[1764087681766,6.8568294,2916.8,2915.8,0.4901]
[1764087682080,6.8568294,2916.8,2915.5,3.61750414]
[1764087682081,0.6767,2916.7,2915.5,3.61750414]
[1764087682371,0.6767,2916.7,2915.5,7.04744754]
[1764087682542,7.31399958,2916.6,2915.5,7.04744754]
[1764087682751,7.31399958,2916.6,2915.5,0.1876]
[1764087682945,0.43788449,2916.5,2915.4,3.42997303]
[1764087684670,6.85776984,2916.4,2915.3,6.86035742]
[1764087685136,0.4379,2916.3,2915.3,6.86035742]
[1764087685469,0.4379,2916.3,2915.3,7.35045742]
[1764087685765,0.22,2916.2,2915.3,7.35045742]
[1764087686359,0.22,2916.2,2915.4,0.52440061]
[1764087686667,0.22,2916.2,2915.4,0.4901]
[1764087686872,3.42846749,2916.8,2916.1,0.6826]
[1764087687033,0.22,2916.7,2916.1,0.6826]
[1764087687239,0.22,2916.7,2916.1,1.1727]
[1764087688886,0.1711,2916.2,2915.6,0.72559411]
[1764087689085,0.1793,2916.9,2915.7,0.4901]
[1764087689371,0.22,2916.8,2916.1,0.6826]
[1764087689536,0.1793,2916.9,2916.1,0.6826]
[1764087689959,3.60764207,2916.9,2916.1,0.6826]
[1764087690157,4.04554207,2916.9,2916.1,0.6826]
[1764087690365,0.002,2916.8,2916.1,0.6826]
[1764087691154,0.002,2916.8,2916.2,3.42912008]
[1764087691349,0.002,2916.8,2916.2,6.85824016]
[1764087691574,0.002,2916.8,2916.1,3.62067847]
[1764087691904,0.4399,2916.8,2916.1,3.42917847]
[1764087692297,0.4399,2916.8,2916.1,7.04991615]
[1764087692298,0.002,2916.8,2916.1,7.04991615]
[1764087693096,0.002,2916.8,2916.1,3.62067847]
[1764087693409,0.4379,2916.7,2915.6,0.4901]
[1764087693575,0.4379,2916.7,2915.6,6.85965152]
[1764087694598,0.4379,2916.7,2915.6,7.34975152]
[1764087695166,3.42864979,2916.6,2915.6,7.34975152]
[1764087695371,0.219,2916.5,2915.6,10.77957728]
[1764087696313,0.2182,2916.5,2915.6,10.77957728]
[1764087696472,0.002,2916.8,2915.6,10.77957728]
[1764087696473,0.002,2916.8,2916.4,0.6826]
[1764087696972,0.002,2916.8,2916.1,0.6816]
[1764087697170,0.002,2916.8,2916.2,6.85824016]
[1764087697603,0.002,2916.8,2916.2,10.77746024]
[1764087698023,0.002,2916.8,2916.7,0.4911]
[1764087698373,0.32069874,2916.8,2916.7,0.4911]
[1764087698709,0.002,2916.8,2916.7,0.4911]
[1764087699312,0.32069874,2916.8,2916.7,3.91963224]
[1764087699648,0.32069874,2916.8,2916.7,3.42853224]
[1764087699935,0.002,2916.8,2916.7,4.40973224]
[1764087700143,0.002,2916.8,2916.7,3.42853224]
[1764087700431,0.3218986,2916.8,2916.3,3.4290025]
[1764087700637,0.3198986,2916.7,2916.3,6.858005]
[1764087700840,0.3198986,2916.6,2916.4,0.4901]
[1764087701149,0.002,2916.8,2916.7,0.4911]